bitfinex-derivatives/quotes_ETHF0:USTF0_20240925
["timestamp","ask_amount","ask_price","bid_price","bid_amount"]
[1727305954379,1.52352705,2579.5,2579.4,0.3877]
[1727305954780,1.52352705,2579.5,2579.4,0.6682]
[1727305954979,1.52352705,2579.6,2579.4,0.6682]
[1727305955384,5.6268294,2579.7,2579.4,0.6682]
[1727305955385,1.52352705,2579.5,2579.4,1.0559]
[1727305955584,1.52352705,2579.6,2579.5,4.03899]
[1727305955789,1.52352705,2579.7,2579.6,0.38767]
[1727305956084,1.52352705,2579.7,2579.5,4.03898]
[1727305956274,2.0313694,2579.8,2579.5,7.24678]
[1727305956275,1.52352705,2579.6,2579.5,7.24678]
[1727305956785,2.4190194,2579.8,2579.5,7.24678]
[1727305956786,1.5235663,2579.7,2579.5,7.24678]
[1727305957485,1.5235663,2579.7,2579.5,6.8591]
[1727305958487,1.9112263,2579.7,2579.5,3.8291]
[1727305958693,1.9112363,2579.6,2579.5,3.2078]
[1727305958884,1.5235663,2579.7,2579.5,6.2378]
[1727305959079,2.53921175,2580.0,2579.6,4.33284508]
[1727305959080,1.5235663,2579.9,2579.6,4.33284508]
[1727305959287,1.5235663,2580.0,2579.8,3.03]
[1727305959588,1.5235663,2580.1,2579.9,0.6571]
[1727305959787,1.5235663,2580.0,2579.9,0.6571]
[1727305960181,0.38764,2579.9,2579.7,40.8]
[1727305960385,1.91093793,2579.9,2579.7,40.8]
[1727305960588,1.91093793,2579.9,2579.5,3.2078]
[1727305960589,1.52329793,2579.8,2579.5,3.2078]
[1727305960882,1.52329793,2579.7,2579.5,3.2078]
[1727305961186,3.23734793,2579.8,2579.5,3.2078]
[1727305961591,1.52329793,2579.7,2579.5,3.2078]
[1727305961781,1.91095793,2579.7,2579.5,3.2078]
[1727305962186,1.52329793,2579.7,2579.5,3.2078]
[1727305962388,1.91095793,2579.7,2579.5,3.2078]
[1727305963489,0.38767,2579.6,2579.5,3.2078]
[1727305963691,2.0313694,2579.7,2579.3,0.6571]
[1727305963987,1.52397362,2579.5,2579.3,0.6571]
[1727305964596,0.3877,2579.4,2579.3,0.6571]
[1727305964998,0.38772,2579.3,2579.2,1.01664441]
[1727305965292,0.38776,2579.0,2578.8,4.22444441]
[1727305965482,0.38776,2579.0,2578.8,3.2078]
[1727305966495,1.91205641,2579.1,2578.8,3.2078]
[1727305966885,0.38776,2579.0,2578.8,3.2078]
[1727305968192,1.52429641,2579.1,2578.8,3.2078]
[1727305968796,1.52429641,2579.1,2578.8,3.59559]
[1727305968797,1.91205641,2579.1,2578.8,3.59559]
[1727305970390,1.52429641,2579.1,2578.8,3.2078]
[1727305970699,2.57063641,2579.2,2578.9,0.38777]
[1727305970891,2.57063641,2579.2,2578.8,3.59558]
[1727305970892,0.38775,2579.1,2578.8,3.59558]
[1727305971690,0.38775,2579.1,2578.8,0.38778]
[1727305973304,2.18289641,2579.2,2578.7,45.89055441]
[1727305973489,0.38777,2579.0,2578.7,45.89055441]
[1727305973693,1.52429641,2579.1,2578.7,45.89055441]
[1727305973891,0.38777,2579.0,2578.8,0.38779]
[1727305974094,1.52429641,2579.1,2578.8,0.38779]
[1727305974095,1.91204641,2579.1,2578.8,0.38779]
[1727305974290,2.57063641,2579.2,2578.9,0.38777]
[1727305974690,0.38775,2579.1,2578.9,0.38777]
[1727305974899,0.38775,2579.1,2578.8,0.38778]
[1727305975796,2.57063641,2579.2,2578.9,0.38777]
[1727305976512,2.15059641,2579.3,2579.1,0.38775]
[1727305976697,2.53831641,2579.3,2579.0,3.41775]
[1727305976998,3.8776,2579.2,2578.9,3.2078]
[1727305977188,3.8776,2579.2,2578.8,1.01664441]
[1727305977189,0.38777,2579.0,2578.8,0.38779]
[1727305977594,0.38778,2578.9,2578.7,45.89054441]
[1727305977798,3.15618641,2579.1,2578.7,0.6561]
[1727305978101,0.38779,2578.9,2578.7,0.6561]
[1727305978400,0.38778,2578.9,2578.7,0.6561]
[1727305979505,6.37134641,2578.9,2578.5,3.2078]
[1727305979704,0.38782,2578.6,2578.5,3.2078]
[1727305980205,5.79051641,2578.6,2578.5,3.2078]
[1727305980404,6.37225641,2578.6,2578.1,5.11242441]
[1727305980604,0.6534,2578.5,2578.1,42.49454441]
[1727305980806,0.38787,2578.3,2578.1,0.6779]
[1727305980998,0.3879,2578.1,2577.9,1.63704441]
[1727305981306,0.3879,2578.1,2577.9,0.6204]
[1727305981494,2.49395641,2578.4,2577.9,0.6204]
[1727305981495,0.6435,2578.3,2577.9,0.6204]
[1727305981804,1.03138,2578.3,2578.0,0.38791]
[1727305982604,0.38788,2578.2,2578.0,0.38791]
[1727305982906,0.38788,2578.2,2577.9,3.6504]
[1727305982907,0.3879,2578.1,2577.9,4.03832]
[1727305984299,0.3879,2578.1,2577.9,3.6504]
[1727305984504,0.6435,2578.3,2577.9,3.6504]
[1727305984505,0.38791,2578.0,2577.9,3.6504]
[1727305984811,1.6132,2578.3,2577.8,3.2078]
[1727305984812,0.38793,2577.9,2577.8,3.2078]
[1727305985016,0.6435,2578.3,2577.8,3.59574]
[1727305985207,0.3879,2578.1,2577.8,3.59574]
[1727305985508,0.38791,2578.0,2577.8,3.2078]
[1727305986005,0.38791,2578.1,2577.8,3.59574]
[1727305986512,0.38791,2578.0,2577.8,3.59574]
[1727305987010,0.38791,2578.1,2577.8,3.59574]
[1727305987807,0.38791,2578.0,2577.8,3.59574]
[1727305988311,0.38791,2578.1,2577.8,3.59574]
[1727305989406,0.38791,2578.0,2577.8,3.59574]
[1727305989706,0.38791,2578.0,2577.8,3.2078]
[1727305990109,0.38791,2578.1,2577.8,3.59574]
[1727305990413,0.38788,2578.2,2577.9,0.38792]
[1727305990707,0.38788,2578.2,2577.9,41.18792]
[1727305991904,0.6435,2578.3,2577.9,40.8]
[1727305992106,0.38788,2578.2,2577.9,41.18792]
[1727305992298,0.6435,2578.3,2577.9,41.18792]
[1727305992299,0.3879,2578.1,2577.9,41.18792]
[1727305992511,0.3879,2578.1,2577.9,0.38792]
[1727305992903,0.38791,2578.0,2577.8,44.39574]
[1727305993409,0.6435,2578.3,2577.8,44.39573]
[1727305993603,1.61319,2578.3,2577.8,44.39573]
[1727305993801,0.38792,2578.0,2577.8,44.39573]
[1727305995098,0.38791,2578.1,2577.9,0.38793]
[1727305995305,0.38793,2577.9,2577.8,44.0078]
[1727305995503,0.38793,2577.9,2577.6,1.00586]
[1727305995703,0.38793,2577.9,2577.6,0.6179]
[1727305995915,0.38792,2578.0,2577.7,0.38796]
[1727305996206,4.17751,2578.2,2577.7,0.38795]
[1727305996413,0.38792,2578.0,2577.7,0.38795]
[1727305996609,0.38793,2577.9,2577.7,0.38795]
[1727305997108,3.03,2578.1,2577.6,0.6179]
[1727305997311,0.38796,2577.7,2577.6,0.6179]
[1727305997710,0.38796,2577.7,2577.4,0.38799]
[1727305997711,4.26717,2577.7,2577.4,0.38799]
[1727305998011,0.38797,2577.7,2577.4,0.38799]
[1727305998211,0.38797,2577.7,2577.5,0.38799]
[1727305998714,1.3621,2577.8,2577.4,0.38799]
[1727305998915,0.38797,2577.7,2577.5,0.38798]
[1727305999606,0.38797,2577.7,2577.4,0.38799]
[1727305999803,0.38797,2577.7,2577.5,0.38798]
[1727306000003,3.41796,2577.7,2577.3,0.679]
[1727306000306,0.38802,2577.3,2577.2,0.634]
[1727306000605,3.2078,2577.6,2577.0,0.6631]
[1727306000812,0.38805,2577.1,2577.0,0.6631]
[1727306001008,0.38806,2577.0,2576.9,0.621]
[1727306001217,0.97016,2577.0,2576.7,0.6735]
[1727306001527,0.38809,2576.9,2576.6,0.38812]
[1727306001702,0.3881,2576.8,2576.6,0.38812]
[1727306002214,0.3881,2576.8,2576.5,1.3335]
[1727306002215,0.38812,2576.6,2576.5,1.3335]
[1727306002412,0.38812,2576.6,2576.5,0.6735]
[1727306002909,0.38812,2576.6,2576.2,1.902]
[1727306002910,0.38815,2576.5,2576.2,1.04818]
[1727306003414,7.20811,2576.7,2576.1,3.2078]
[1727306003415,0.38818,2576.3,2576.1,3.2078]
[1727306003611,0.38816,2576.4,2576.1,3.59599]
[1727306003814,0.38815,2576.5,2576.2,0.38817]
[1727306004312,1.8992,2576.6,2576.2,0.38817]
[1727306005312,0.38815,2576.5,2576.2,0.38817]
[1727306005516,1.64912,2576.6,2576.3,0.38815]
[1727306005713,1.64912,2576.6,2576.4,1.02875]
[1727306005910,1.261,2576.6,2576.4,1.02875]
[1727306006211,1.02963,2576.6,2576.4,1.02875]
[1727306006613,0.38814,2576.5,2576.4,0.6406]
[1727306007310,1.02963,2576.6,2576.4,1.02875]
[1727306007517,1.02963,2576.6,2576.4,0.6406]
[1727306007518,0.38814,2576.5,2576.4,0.6406]
[1727306007710,1.63893,2576.9,2576.4,0.6406]
[1727306007711,0.9702,2576.9,2576.4,0.6406]
[1727306007914,0.3881,2576.8,2576.4,0.6406]
[1727306008112,0.3881,2576.8,2576.5,0.6695]
[1727306008314,0.38809,2576.8,2576.5,1.05763]
[1727306008503,0.38809,2576.8,2576.6,40.8]
[1727306008708,0.38809,2576.8,2576.6,41.18812]
[1727306008915,0.38809,2576.8,2576.6,40.8]
[1727306009113,0.38809,2576.8,2576.6,41.18812]
[1727306009313,0.3881,2576.8,2576.6,40.8]
[1727306009512,0.38812,2576.6,2576.5,0.6695]
[1727306011520,0.38814,2576.5,2576.4,41.4406]
[1727306013616,0.38814,2576.5,2576.4,0.6406]
[1727306013810,0.38814,2576.5,2576.2,0.6273]
[1727306013811,0.38817,2576.3,2576.2,0.6273]
[1727306014321,0.38817,2576.3,2576.2,41.4273]
[1727306014623,0.38818,2576.2,2576.1,3.2078]
[1727306015122,0.38818,2576.2,2576.1,44.0078]
[1727306015418,0.38818,2576.2,2576.1,3.2078]
[1727306016023,8.27025,2576.2,2576.1,3.2078]
[1727306016318,0.38822,2576.0,2575.6,0.6743]
[1727306016715,0.38822,2576.0,2575.8,0.38824]
[1727306017220,0.38823,2576.0,2575.6,0.6743]
[1727306017420,0.38823,2576.0,2575.8,0.38824]
[1727306017618,0.38825,2575.8,2575.6,0.38827]
[1727306017814,3.03,2575.9,2575.5,0.6573]
[1727306018009,0.38827,2575.6,2575.5,0.6573]
[1727306019922,0.38824,2575.9,2575.6,0.38826]
[1727306020224,0.38825,2575.8,2575.6,0.38826]
[1727306020923,0.38826,2575.7,2575.5,0.6573]
[1727306021117,0.38826,2575.7,2575.5,1.04558]
[1727306021318,0.38827,2575.6,2575.5,0.6573]
[1727306024426,0.38827,2575.7,2575.5,0.6573]
[1727306024728,4.646,2575.9,2575.5,0.6573]
[1727306024929,0.38827,2575.7,2575.5,0.6573]
[1727306025629,0.38824,2575.9,2575.6,0.38826]
[1727306025824,0.38825,2575.8,2575.6,0.38827]
[1727306026123,0.38825,2575.8,2575.7,40.8]
[1727306026524,0.38824,2575.9,2575.7,0.38826]
[1727306026923,0.38822,2576.0,2575.8,0.38824]
[1727306027316,3.41821,2576.1,2575.9,0.38823]
[1727306027524,0.38821,2576.0,2575.8,0.38824]
[1727306028236,0.38822,2576.0,2575.8,0.38823]
[1727306028732,3.03,2576.1,2575.7,0.38825]
[1727306029037,0.38823,2575.9,2575.7,0.38825]
[1727306029232,3.2078,2576.4,2576.0,0.3882]
[1727306029419,0.3882,2576.2,2576.1,0.6358]
[1727306031331,0.38818,2576.2,2576.1,0.6358]
[1727306032728,5.59139,2576.2,2575.9,0.6324]
[1727306032935,0.38821,2576.1,2575.9,1.02062]
[1727306033725,0.38821,2576.1,2575.9,0.6324]
[1727306034418,0.38821,2576.0,2575.9,0.6324]
[1727306035625,0.38823,2575.9,2575.7,4.26886]
[1727306035830,3.03,2576.1,2575.7,3.8806]
[1727306036132,0.38821,2576.0,2575.8,0.38824]
[1727306036828,3.03,2576.1,2575.7,3.8806]
[1727306037035,3.41824,2575.9,2575.7,3.8806]
[1727306037331,0.38824,2575.8,2575.7,3.8806]
[1727306037534,0.38824,2575.8,2575.7,0.6728]
[1727306037936,0.38824,2575.8,2575.6,0.38826]
[1727306038231,8.56337,2575.7,2575.2,1.03742]
[1727306038419,3.03,2575.3,2575.2,1.03742]
[1727306038618,3.03,2575.3,2575.2,4.24522]
[1727306038828,3.41828,2575.6,2575.4,0.3883]
[1727306039224,0.38829,2575.5,2575.3,0.38831]
[1727306040223,0.38831,2575.4,2575.2,1.03743]
[1727306040631,0.38831,2575.4,2575.2,0.6491]
[1727306040632,3.03,2575.4,2575.2,0.6491]
[1727306040932,0.38832,2575.3,2575.2,0.6491]
[1727306041227,3.03,2575.4,2574.9,3.59617]
[1727306041228,4.00078,2575.4,2574.9,3.59617]
[1727306041430,4.00078,2575.4,2575.0,0.38836]
[1727306041431,3.03,2575.2,2575.0,0.38836]
[1727306041824,3.03,2575.2,2574.9,40.8]
[1727306042231,3.03,2575.4,2574.9,40.8]
[1727306042628,3.03,2575.6,2574.9,40.8]
[1727306042834,3.03,2575.6,2575.4,0.3883]
[1727306043135,0.6803,2575.7,2575.5,0.38829]
[1727306043434,0.6803,2575.7,2575.2,0.6301]
[1727306043741,0.6803,2575.7,2575.5,0.38828]
[1727306044040,4.078,2576.1,2575.6,0.6924]
[1727306044334,4.078,2576.1,2575.8,0.38823]
[1727306044335,4.0496,2576.1,2575.8,0.38823]
[1727306044834,0.38822,2576.0,2575.7,0.38825]
[1727306045228,0.38821,2576.0,2575.7,0.38825]
[1727306045637,0.38823,2575.9,2575.7,0.38825]
[1727306046336,3.6614,2576.1,2575.7,3.2078]
[1727306046540,0.38822,2576.0,2575.8,1.05453]
[1727306046839,8.15027641,2576.3,2575.8,0.6663]
[1727306047029,0.38821,2576.1,2575.9,1.07372]
[1727306047429,0.38823,2575.9,2575.8,0.6663]
[1727306047737,3.41821,2576.1,2575.9,0.38822]
[1727306047937,3.03,2576.1,2575.8,0.6663]
[1727306048132,0.38823,2576.0,2575.8,1.05454]
[1727306048339,0.38823,2576.0,2575.8,0.6663]
[1727306048528,3.4182,2576.1,2575.9,0.38822]
[1727306048728,3.03,2576.1,2575.8,0.6663]
[1727306049339,3.03,2576.1,2575.9,0.38822]
[1727306049542,3.03,2576.1,2575.8,0.6663]
[1727306049543,3.03,2576.1,2576.0,0.38821]
[1727306050736,3.03,2576.1,2575.8,0.6663]
[1727306050937,0.38823,2575.9,2575.8,0.6663]
[1727306052627,0.38823,2575.9,2575.6,0.6924]
[1727306052628,0.38826,2575.8,2575.6,0.6924]
[1727306052834,3.03,2575.9,2575.6,1.08067]
[1727306053038,0.38824,2575.8,2575.6,1.08067]
[1727306054240,3.03,2575.9,2575.8,0.38824]
[1727306054434,1.05292,2576.0,2575.8,0.38824]
[1727306054639,0.38822,2576.0,2575.8,0.38824]
[1727306054936,0.38823,2575.9,2575.7,0.38825]
[1727306056547,0.38824,2575.9,2575.7,0.38826]
[1727306058837,0.38824,2575.9,2575.8,0.38824]
[1727306059446,0.38824,2575.9,2575.7,1.40489441]
[1727306060042,0.38824,2575.9,2575.7,0.38825]
[1727306060442,0.38824,2575.9,2575.7,1.40489441]
[1727306062256,1.52429641,2576.0,2575.8,1.01664441]
[1727306062551,3.6943,2576.1,2576.0,0.38821]
[1727306062552,5.21859641,2576.1,2576.0,0.38821]
[1727306062755,5.21859641,2576.1,2575.9,1.01282]
[1727306062756,5.60679641,2576.1,2575.9,1.01282]
[1727306064353,5.60680641,2576.1,2575.9,1.01282]
[1727306064654,1.52429641,2576.0,2575.9,1.01283]
[1727306064958,5.60680641,2576.1,2575.9,1.01283]
[1727306065743,0.38821,2576.0,2575.9,1.01283]
[1727306066561,5.60680641,2576.1,2575.9,1.01283]
[1727306066747,1.52429641,2576.0,2575.9,1.01283]
[1727306066954,5.60680641,2576.1,2575.9,1.01283]
[1727306068357,1.52429641,2576.0,2575.9,1.01283]
[1727306068661,1.52429641,2576.1,2576.0,0.38821]
[1727306069157,1.91248641,2576.2,2576.1,0.3882]
[1727306070759,0.38819,2576.2,2576.1,0.3882]
[1727306071555,2.42060342,2576.2,2576.0,0.3882]
[1727306071756,4.94327377,2576.1,2576.0,0.3882]
[1727306071948,4.55507377,2576.1,2576.0,0.3882]
[1727306072352,4.94327377,2576.1,2576.0,0.3882]
[1727306072552,0.38823,2575.9,2575.8,1.40488441]
[1727306072959,0.38823,2575.9,2575.8,0.38824]
[1727306073158,0.38823,2575.9,2575.7,4.22444441]
[1727306073159,0.38823,2575.9,2575.7,4.61269441]
[1727306073559,0.38824,2575.8,2575.7,1.01664441]
[1727306073867,0.38828,2575.6,2575.4,1.40494441]
[1727306074074,3.03,2575.5,2575.4,1.40594883]
[1727306074559,1.91312567,2575.7,2575.6,0.38827]
[1727306074560,1.52485567,2575.7,2575.6,0.38827]
[1727306074768,5.06240342,2575.9,2575.7,0.38826]
[1727306074769,4.94309567,2575.9,2575.7,0.38826]
[1727306075252,4.94309567,2575.9,2575.7,1.03166]
[1727306075950,4.94309567,2575.9,2575.7,0.6434]
[1727306076150,0.38824,2575.8,2575.7,0.6434]
[1727306076558,4.55485567,2575.9,2575.8,0.38824]
[1727306076559,3.03,2575.9,2575.8,0.38824]
[1727306077558,3.03,2575.9,2575.8,1.40588883]
[1727306078167,3.03,2575.9,2575.8,0.38824]
[1727306078361,3.03,2575.9,2575.7,2.30004883]
[1727306078563,1.52485567,2575.8,2575.5,2.54261545]
[1727306078771,0.38829,2575.5,2575.4,1.40594883]
[1727306078955,0.38829,2575.5,2575.4,1.01766099]
[1727306080364,0.38828,2575.6,2575.4,1.01766099]
[1727306080565,0.647,2575.5,2575.4,1.01766099]
[1727306080968,1.03529,2575.5,2575.4,1.01766099]
[1727306081267,0.3883,2575.4,2575.3,1.01766099]
[1727306081459,0.3883,2575.4,2575.2,2.37196099]
[1727306081460,0.38831,2575.4,2575.2,2.37196099]
[1727306081664,0.38831,2575.4,2575.2,2.76029099]
[1727306082370,4.0653,2575.5,2575.2,2.76029099]
[1727306082960,4.0653,2575.5,2575.3,1.01766099]
[1727306083263,4.06529,2575.5,2575.3,1.40597099]
[1727306083457,5.61262567,2575.7,2575.3,1.01766099]
[1727306083663,5.61262567,2575.7,2575.5,0.38828]
[1727306085669,3.41827,2575.7,2575.6,3.2078]
[1727306085870,3.03,2575.7,2575.6,0.38827]
[1727306087763,4.55485567,2575.7,2575.6,0.38827]
[1727306088069,3.03,2575.7,2575.6,0.38827]
[1727306089264,4.55485567,2575.7,2575.6,0.38827]
[1727306089463,3.03,2575.7,2575.6,0.38827]
[1727306090158,3.03,2575.7,2575.6,3.59607]
[1727306090363,1.52485567,2575.9,2575.8,0.38824]
[1727306090571,1.52485567,2576.1,2575.9,0.38823]
[1727306090778,1.91305567,2576.1,2575.9,0.38823]
[1727306091066,1.91305567,2576.1,2575.8,1.01768034]
[1727306091067,4.55485567,2576.1,2575.8,1.01768034]
[1727306091271,0.38823,2575.9,2575.8,1.01768034]
[1727306092062,1.04083,2575.9,2575.7,2.31308034]
[1727306092258,1.04083,2575.9,2575.7,2.70134034]
[1727306092668,1.04083,2575.9,2575.7,2.31308034]
[1727306093572,1.04083,2575.9,2575.7,2.70133034]
[1727306093968,1.04083,2575.9,2575.8,1.01768034]
[1727306094875,0.6526,2575.9,2575.8,1.40592034]
[1727306095369,4.94306567,2576.1,2575.9,0.38823]
[1727306095773,1.52485567,2576.0,2575.9,0.38823]
[1727306096077,1.91306567,2576.0,2575.8,1.40591034]
[1727306096275,0.38821,2576.0,2575.8,1.40591034]
[1727306096677,4.94305567,2576.1,2575.9,0.38822]
[1727306097175,4.55485567,2576.1,2576.0,0.38821]
[1727306097574,4.94306567,2576.1,2575.9,3.59602]
[1727306097780,4.55485567,2576.1,2576.0,0.38821]
[1727306098381,3.03,2576.1,2576.0,0.38821]
[1727306099675,1.52503189,2576.1,2576.0,0.38821]
[1727306099873,1.52504301,2576.1,2576.0,0.3882]
[1727306100077,1.52503063,2576.1,2576.0,0.3882]
[1727306100474,2.03240342,2576.2,2576.1,0.3882]
[1727306100675,5.45058342,2576.3,2576.1,0.3882]
[1727306100879,0.38818,2576.2,2576.0,0.3882]
[1727306101076,1.52498187,2576.1,2576.0,0.3882]
[1727306101889,1.52498187,2576.2,2576.1,0.3882]
[1727306102380,1.4,2576.2,2576.0,0.3882]
[1727306102583,1.52489357,2576.1,2576.0,0.3882]
[1727306104675,1.91309357,2576.1,2575.9,3.59602]
[1727306104875,1.91309357,2576.1,2576.0,0.38821]
[1727306105278,1.52489357,2576.1,2576.0,0.38821]
[1727306106382,3.31307357,2576.2,2576.0,0.38821]
[1727306108275,0.38823,2575.9,2575.8,1.01768034]
[1727306108585,0.38824,2575.8,2575.7,1.01768034]
[1727306108788,2.43664,2575.8,2575.7,1.01768034]
[1727306109288,1.299,2575.9,2575.8,0.38824]
[1727306109289,2.0745,2575.9,2575.8,0.38824]
[1727306109677,2.0745,2575.9,2575.8,1.02344]
[1727306109873,1.52489357,2576.1,2575.8,0.6352]
[1727306110073,1.52489357,2576.1,2576.0,0.38821]
[1727306110375,2.56147357,2576.2,2576.0,3.59601]
[1727306110571,1.4,2576.1,2576.0,3.59601]
[1727306110780,0.6484,2576.2,2576.1,0.3882]
[1727306111087,2.0484,2576.2,2576.1,0.3882]
[1727306111682,2.0484,2576.2,2576.0,5.26358034]
[1727306111986,2.43659,2576.2,2576.0,4.87538034]
[1727306112176,2.43659,2576.2,2576.0,3.59601]
[1727306112376,2.43659,2576.2,2576.0,0.38821]
[1727306112580,2.0484,2576.2,2575.9,1.01768034]
[1727306112778,1.78822,2576.0,2575.9,1.01768034]
[1727306113181,0.38823,2575.9,2575.8,1.65288034]
[1727306113394,0.6665,2575.9,2575.8,2.9166224]
[1727306113682,0.6665,2575.9,2575.8,3.3048624]
[1727306113892,0.6665,2575.9,2575.8,1.01768034]
[1727306114792,0.6665,2575.9,2575.8,1.40592034]
[1727306116579,0.6665,2575.9,2575.8,1.01768034]
[1727306116777,0.6665,2575.9,2575.8,1.40592034]
[1727306116981,1.05473,2575.9,2575.8,1.01768034]
[1727306117288,0.6665,2575.9,2575.8,1.40592034]
[1727306118993,0.6665,2575.9,2575.8,4.61372034]
[1727306120585,0.6665,2575.9,2575.8,1.40592034]
[1727306120793,0.6665,2575.9,2575.8,4.61372034]
[1727306121387,0.6665,2575.9,2575.8,1.40592034]
[1727306121590,0.6665,2575.9,2575.8,3.2078]
[1727306121790,1.05473,2575.9,2575.8,3.2078]
[1727306122293,1.05473,2575.9,2575.7,4.61373034]
[1727306122495,2.0468,2575.8,2575.7,4.61373034]
[1727306122791,2.0468,2575.8,2575.7,5.87759762]
[1727306124491,2.0468,2575.8,2575.7,4.85991728]
[1727306124795,2.0468,2575.8,2575.7,5.87723758]
[1727306125195,2.0468,2575.8,2575.7,5.87723562]
[1727306125399,2.0468,2575.8,2575.7,5.87724436]
[1727306125694,2.0468,2575.8,2575.7,6.3848839]
[1727306125884,2.0468,2575.8,2575.7,6.38495331]
[1727306126686,2.0468,2575.8,2575.7,5.87759517]
[1727306127083,2.0468,2575.8,2575.7,6.38508683]
[1727306127282,2.0468,2575.8,2575.7,5.87759756]
[1727306127487,2.0468,2575.8,2575.7,6.38508683]
[1727306127884,1.52489357,2576.0,2575.9,0.38823]
[1727306128086,2.92489357,2576.2,2576.1,0.3882]
[1727306128294,1.52489357,2576.3,2576.2,0.38818]
[1727306128489,1.4,2576.2,2576.1,41.1882]
[1727306128688,1.52489357,2576.4,2576.1,41.1882]
[1727306128689,1.52489357,2576.4,2576.1,43.58920031]
[1727306128888,2.53921175,2576.7,2576.1,43.58920031]
[1727306128889,1.52489357,2576.7,2576.6,0.38812]
[1727306129096,1.52489357,2577.1,2577.0,0.38806]
[1727306129296,3.60829357,2577.2,2577.1,0.38805]
[1727306129489,2.0834,2577.2,2577.1,0.38805]
[1727306129691,1.4,2577.2,2577.1,0.38805]
[1727306130688,1.4,2577.2,2577.0,0.38806]
[1727306130887,1.4,2577.1,2577.0,0.38806]
[1727306132398,3.03,2577.1,2577.0,0.38806]
[1727306132795,1.91289357,2577.5,2577.2,0.38802]
[1727306133002,3.40300342,2577.6,2576.9,3.2078]
[1727306133003,3.03,2577.4,2577.3,0.38802]
[1727306133391,3.03,2577.4,2577.2,0.38802]
[1727306133994,3.03,2577.4,2577.3,4.26802]
[1727306134298,3.2078,2577.7,2577.6,0.38797]
[1727306135095,6.2378,2577.7,2577.4,1.9563]
[1727306135295,3.03,2577.5,2577.4,1.3334]
[1727306136598,0.38802,2577.3,2577.0,4.21876]
[1727306136795,3.03,2577.1,2577.0,6.07826]
[1727306137300,3.03,2577.1,2577.0,5.6902]
[1727306137497,3.41805,2577.1,2577.0,0.6555]
[1727306137699,4.69715,2577.1,2576.8,0.38809]
[1727306137896,4.69715,2577.1,2576.7,1.204]
[1727306137897,3.03,2576.9,2576.7,1.5921]
[1727306138790,3.03,2576.9,2576.8,0.38809]
[1727306139703,3.03,2576.9,2576.7,0.3881]
[1727306140302,3.03,2576.9,2576.6,1.3068]
[1727306140503,3.03,2576.7,2576.6,1.3068]
[1727306140799,3.03,2576.9,2576.8,0.38809]
[1727306141007,1.2791,2577.1,2576.9,0.38808]
[1727306141008,3.03,2577.0,2576.9,0.38808]
[1727306141502,3.03,2577.0,2576.8,3.59588]
[1727306141902,3.03,2577.0,2576.9,0.38808]
[1727306142393,3.03,2577.0,2576.8,3.59588]
[1727306142789,3.41807,2577.0,2576.8,3.2078]
[1727306142996,0.38808,2576.9,2576.8,3.2078]
[1727306143204,0.38808,2576.9,2576.6,4.25142]
[1727306143398,3.03,2576.8,2576.6,4.25142]
[1727306143605,3.4181,2576.8,2576.6,3.8633]
[1727306146006,3.03,2576.8,2576.6,4.25142]
[1727306146595,3.41809,2576.8,2576.6,3.8633]
[1727306146903,3.03,2576.8,2576.7,0.38811]
[1727306147601,3.03,2577.0,2576.9,0.38808]
[1727306148901,0.6819,2577.3,2576.6,4.83359]
[1727306149109,4.0406,2577.4,2577.2,0.38803]
[1727306149708,3.6526,2577.4,2577.2,0.38803]
[1727306150096,3.6526,2577.4,2577.3,0.38802]
[1727306150296,4.0406,2577.4,2577.2,0.6475]
[1727306150498,3.6526,2577.4,2577.1,3.2078]
[1727306150699,3.6526,2577.4,2576.8,3.8553]
[1727306150700,3.03,2577.2,2576.8,3.8553]
[1727306151003,3.03,2576.9,2576.8,4.24339]
[1727306154009,3.03,2576.9,2576.8,1.03559]
[1727306154207,3.03,2576.9,2576.8,0.6475]
[1727306154406,3.03,2576.9,2576.8,1.03559]
[1727306158515,3.2078,2577.4,2576.8,0.6475]
[1727306158715,3.03,2577.2,2577.0,3.2078]
[1727306158919,3.03,2577.2,2577.1,0.38805]
[1727306160112,3.6078,2577.5,2577.3,0.388]
[1727306160300,0.38801,2577.4,2577.2,0.91172]
[1727306160507,3.41802,2577.3,2577.2,0.5237]
[1727306160702,3.03,2577.3,2577.1,0.38804]
[1727306160909,3.03,2577.3,2576.9,0.38806]
[1727306161210,3.03,2577.0,2576.9,0.38806]
[1727306161415,3.03,2577.0,2576.8,1.0479]
[1727306161416,3.03,2577.2,2577.1,0.38804]
[1727306162418,3.03,2577.4,2577.3,0.388]
[1727306162915,3.03,2577.6,2577.5,0.38799]
[1727306165905,3.03,2577.6,2577.3,3.7773]
[1727306166110,3.03,2577.4,2577.2,0.5604]
[1727306166311,0.5457,2577.3,2577.2,0.94843]
[1727306167314,3.03,2577.6,2577.2,4.4404]
[1727306167509,0.38798,2577.6,2577.3,0.91401]
[1727306167823,3.03,2577.5,2577.4,0.388]
[1727306168019,3.03,2577.5,2577.4,0.9644]
[1727306170920,0.38802,2577.3,2577.2,0.5604]
[1727306171129,0.38806,2577.1,2576.8,3.7401125]
[1727306171424,3.41807,2577.0,2576.8,2.4999125]
[1727306171924,3.41807,2577.0,2576.9,0.38808]
[1727306171925,3.03,2577.0,2576.9,0.38808]
[1727306174419,3.03,2577.0,2576.9,1.4050125]
[1727306175722,5.12769357,2577.2,2577.0,0.38806]
[1727306176028,3.6028,2577.2,2577.1,0.38805]
[1727306176332,0.5728,2577.2,2577.0,4.6127825]